[Event "Late-Titled-Tuesday-Blitz-April-16-2024"]
[Site "Chess.com"]
[Date "2024.04.16"]
[Round "1"]
[White "Viktoker"]
[Black "DonkyDonkyDonkey"]
[Result "0-1"]
[WhiteElo "2489"]
[BlackElo "2909"]
[TimeControl "180+1"]
[EndTime "14:06:01 PDT"]
[Termination "DonkyDonkyDonkey won by checkmate"]

1. d4 {[%clk 0:03:00.9]} 1... Nf6 {[%clk 0:02:58.2]} 2. c4 {[%clk 0:02:31.9]}
2... g6 {[%clk 0:02:58]} 3. Nc3 {[%clk 0:02:31.4]} 3... d5 {[%clk 0:02:58.3]} 4.
cxd5 {[%clk 0:02:28.8]} 4... Nxd5 {[%clk 0:02:59.2]} 5. Na4 {[%clk 0:02:29.3]}
5... Bg7 {[%clk 0:02:55.8]} 6. e4 {[%clk 0:02:28.2]} 6... Nb6 {[%clk 0:02:56.1]}
7. Be3 {[%clk 0:02:22.7]} 7... O-O {[%clk 0:02:55]} 8. Nc3 {[%clk 0:02:21.2]}
8... Nc6 {[%clk 0:02:53]} 9. Nf3 {[%clk 0:02:13.5]} 9... Bg4 {[%clk 0:02:52.7]}
10. d5 {[%clk 0:02:13.1]} 10... Ne5 {[%clk 0:02:52.6]} 11. Be2 {[%clk
0:02:10.2]} 11... Bxf3 {[%clk 0:02:52.8]} 12. Bxf3 {[%clk 0:02:11.1]} 12... Nbc4
{[%clk 0:02:46]} 13. Bc1 {[%clk 0:02:04.6]} 13... Nxf3+ {[%clk 0:02:32.1]} 14.
Qxf3 {[%clk 0:02:00.2]} 14... c6 {[%clk 0:02:32.6]} 15. O-O {[%clk 0:01:58.6]}
15... cxd5 {[%clk 0:02:31.9]} 16. Nxd5 {[%clk 0:01:45.8]} 16... e6 {[%clk
0:02:31.3]} 17. Nc3 {[%clk 0:01:41.5]} 17... Rc8 {[%clk 0:02:30.9]} 18. Rd1
{[%clk 0:01:36.8]} 18... Qb6 {[%clk 0:02:29.1]} 19. Qe2 {[%clk 0:01:25.1]} 19...
Qa6 {[%clk 0:02:16.7]} 20. h4 {[%clk 0:01:14.4]} 20... Nxb2 {[%clk 0:02:01.9]}
21. Qxa6 {[%clk 0:01:13.7]} 21... bxa6 {[%clk 0:02:02.3]} 22. Bxb2 {[%clk
0:01:14]} 22... Bxc3 {[%clk 0:02:03.1]} 23. Bxc3 {[%clk 0:01:14.1]} 23... Rxc3
{[%clk 0:02:04]} 24. Rd7 {[%clk 0:01:14.5]} 24... Rc4 {[%clk 0:01:55.9]} 25.
Rxa7 {[%clk 0:01:10.2]} 25... Ra4 {[%clk 0:01:51.6]} 26. Rb1 {[%clk 0:01:03.5]}
26... Rxa2 {[%clk 0:01:50.9]} 27. Rb6 {[%clk 0:01:03.7]} 27... Re2 {[%clk
0:01:45.4]} 28. Rbb7 {[%clk 0:00:33]} 28... Rxe4 {[%clk 0:01:43.8]} 29. Rxa6
{[%clk 0:00:32]} 29... Rxh4 {[%clk 0:01:43.1]} 30. Raa7 {[%clk 0:00:30.1]} 30...
Rf4 {[%clk 0:01:43]} 31. f3 {[%clk 0:00:29.5]} 31... h5 {[%clk 0:01:42.9]} 32.
Kh2 {[%clk 0:00:29.2]} 32... Kg7 {[%clk 0:01:43.1]} 33. Kg3 {[%clk 0:00:29.2]}
33... Rf5 {[%clk 0:01:43.3]} 34. Kf2 {[%clk 0:00:24.6]} 34... Rc8 {[%clk
0:01:41.8]} 35. Kg3 {[%clk 0:00:24.8]} 35... Rc2 {[%clk 0:01:38.9]} 36. Kh3
{[%clk 0:00:22.3]} 36... g5 {[%clk 0:01:33.9]} 37. Rd7 {[%clk 0:00:19.8]} 37...
Rc3 {[%clk 0:01:32.9]} 38. Kg3 {[%clk 0:00:19.3]} 38... g4 {[%clk 0:01:32.5]}
39. Kh4 {[%clk 0:00:16.7]} 39... gxf3 {[%clk 0:01:32.9]} 40. gxf3 {[%clk
0:00:16.9]} 40... Rfxf3 {[%clk 0:01:33.3]} 41. Kxh5 {[%clk 0:00:15.4]} 41... Rc4
{[%clk 0:01:29.3]} 42. Kg5 {[%clk 0:00:14.1]} 42... Rf5# {[%clk 0:01:29.3]} 0-1

[Event "Late-Titled-Tuesday-Blitz-April-16-2024"]
[Site "Chess.com"]
[Date "2024.04.16"]
[Round "1"]
[White "BabageldiAnnaberdiyev"]
[Black "Shodikulov_Jamshid1990"]
[Result "1-0"]
[WhiteElo "2599"]
[BlackElo "2272"]
[TimeControl "180+1"]
[EndTime "14:06:01 PDT"]
[Termination "BabageldiAnnaberdiyev won by resignation"]

1. e4 {[%clk 0:02:59]} 1... c5 {[%clk 0:02:59.6]} 2. Nf3 {[%clk 0:02:58.7]} 2...
e6 {[%clk 0:02:59.1]} 3. d3 {[%clk 0:02:59.2]} 3... d5 {[%clk 0:02:58.1]} 4.
Nbd2 {[%clk 0:03:00.1]} 4... Nf6 {[%clk 0:02:57.4]} 5. g3 {[%clk 0:03:00]} 5...
Nc6 {[%clk 0:02:55.5]} 6. Bg2 {[%clk 0:03:00.6]} 6... Bd6 {[%clk 0:02:49]} 7.
O-O {[%clk 0:03:00.5]} 7... O-O {[%clk 0:02:48.4]} 8. Re1 {[%clk 0:03:00.9]}
8... Qc7 {[%clk 0:02:46.1]} 9. Qe2 {[%clk 0:02:57.7]} 9... dxe4 {[%clk
0:02:39.4]} 10. dxe4 {[%clk 0:02:58.6]} 10... e5 {[%clk 0:02:37.2]} 11. c3
{[%clk 0:02:57.7]} 11... Re8 {[%clk 0:02:32.7]} 12. Nc4 {[%clk 0:02:55.2]} 12...
Bg4 {[%clk 0:02:30]} 13. Bg5 {[%clk 0:02:54]} 13... Be7 {[%clk 0:02:17.9]} 14.
Ne3 {[%clk 0:02:42.1]} 14... Be6 {[%clk 0:02:16.5]} 15. Bxf6 {[%clk 0:02:37.2]}
15... Bxf6 {[%clk 0:02:15.9]} 16. Nd5 {[%clk 0:02:34.3]} 16... Bxd5 {[%clk
0:02:13.9]} 17. exd5 {[%clk 0:02:35.2]} 17... Nb8 {[%clk 0:02:12.8]} 18. c4
{[%clk 0:02:17]} 18... Nd7 {[%clk 0:02:10.8]} 19. Rad1 {[%clk 0:02:15]} 19...
Qd6 {[%clk 0:02:10.2]} 20. Nd2 {[%clk 0:02:14]} 20... Bd8 {[%clk 0:02:03.8]} 21.
Bh3 {[%clk 0:02:08.9]} 21... Nf6 {[%clk 0:01:57.1]} 22. b3 {[%clk 0:02:05.1]}
22... Ba5 {[%clk 0:01:57]} 23. Bg2 {[%clk 0:01:44.3]} 23... Bc3 {[%clk
0:01:53.2]} 24. Qd3 {[%clk 0:01:40.5]} 24... Bd4 {[%clk 0:01:50.7]} 25. h3
{[%clk 0:01:34.6]} 25... g6 {[%clk 0:01:49.9]} 26. Rf1 {[%clk 0:01:31.4]} 26...
Qa6 {[%clk 0:01:44.7]} 27. a4 {[%clk 0:01:29.5]} 27... Qd6 {[%clk 0:01:43.3]}
28. Kh2 {[%clk 0:01:29.1]} 28... Nh5 {[%clk 0:01:36.4]} 29. Bf3 {[%clk
0:01:25.8]} 29... Ng7 {[%clk 0:01:31.9]} 30. Ne4 {[%clk 0:01:23.5]} 30... Qd8
{[%clk 0:01:30.9]} 31. g4 {[%clk 0:01:22.8]} 31... f5 {[%clk 0:01:27.9]} 32.
gxf5 {[%clk 0:01:22]} 32... gxf5 {[%clk 0:01:27.5]} 33. Rg1 {[%clk 0:01:17.9]}
33... fxe4 {[%clk 0:01:22]} 34. Bxe4 {[%clk 0:01:18.8]} 34... Qh4 {[%clk
0:01:20.1]} 35. Rg2 {[%clk 0:01:15.8]} 35... Kh8 {[%clk 0:01:17.9]} 36. Rdg1
{[%clk 0:01:08.6]} 36... Rg8 {[%clk 0:01:17.4]} 37. Rg4 {[%clk 0:01:04.2]} 37...
Qxf2+ {[%clk 0:01:16.1]} 38. R1g2 {[%clk 0:01:03.6]} 38... Qe3 {[%clk
0:01:13.9]} 39. Bxh7 {[%clk 0:01:03.8]} 39... Qh6 {[%clk 0:01:07.7]} 40. Bxg8
{[%clk 0:01:03.1]} 40... Rxg8 {[%clk 0:01:08]} 41. Qe4 {[%clk 0:00:58.6]} 41...
Be3 {[%clk 0:01:08.2]} 42. Rh4 {[%clk 0:00:56]} 42... Bf4+ {[%clk 0:01:08.1]}
43. Qxf4 {[%clk 0:00:54.8]} 1-0

[Event "Late-Titled-Tuesday-Blitz-April-16-2024"]
[Site "Chess.com"]
[Date "2024.04.16"]
[Round "1"]
[White "Doublekk14"]
[Black "AradNazari"]
[Result "0-1"]
[WhiteElo "2395"]
[BlackElo "2708"]
[TimeControl "180+1"]
[EndTime "14:06:03 PDT"]
[Termination "AradNazari won on time"]

1. c4 {[%clk 0:02:50.6]} 1... c5 {[%clk 0:02:55.6]} 2. Nc3 {[%clk 0:02:49.5]}
2... Nc6 {[%clk 0:02:55.6]} 3. Nf3 {[%clk 0:02:49.4]} 3... e5 {[%clk 0:02:55.7]}
4. e3 {[%clk 0:02:48.6]} 4... Nf6 {[%clk 0:02:56.1]} 5. d4 {[%clk 0:02:48]} 5...
e4 {[%clk 0:02:55.6]} 6. Ng5 {[%clk 0:02:43.1]} 6... cxd4 {[%clk 0:01:47.4]} 7.
exd4 {[%clk 0:02:28.1]} 7... Bb4 {[%clk 0:01:47.2]} 8. d5 {[%clk 0:02:15.8]}
8... Bxc3+ {[%clk 0:01:46.7]} 9. bxc3 {[%clk 0:02:14.4]} 9... Na5 {[%clk
0:01:47.6]} 10. Qd4 {[%clk 0:02:09.3]} 10... O-O {[%clk 0:01:34.4]} 11. Be2
{[%clk 0:02:00.7]} 11... Re8 {[%clk 0:01:23.8]} 12. O-O {[%clk 0:01:48.3]} 12...
d6 {[%clk 0:01:21.4]} 13. Bd1 {[%clk 0:01:19.4]} 13... h6 {[%clk 0:01:18.3]} 14.
Nh3 {[%clk 0:01:13.6]} 14... Bxh3 {[%clk 0:01:18.8]} 15. gxh3 {[%clk 0:01:13.6]}
15... Qc8 {[%clk 0:01:19.4]} 16. Kg2 {[%clk 0:01:04.6]} 16... Nxc4 {[%clk
0:01:12.1]} 17. Bf4 {[%clk 0:00:56.7]} 17... Ne5 {[%clk 0:01:09.1]} 18. Be2
{[%clk 0:00:53.6]} 18... Qf5 {[%clk 0:01:08.6]} 19. Bg3 {[%clk 0:00:49]} 19...
Ng6 {[%clk 0:01:00.5]} 20. Bxd6 {[%clk 0:00:40.3]} 20... Rad8 {[%clk 0:00:57.5]}
21. Bg3 {[%clk 0:00:34]} 21... Nxd5 {[%clk 0:00:57.6]} 22. Qxa7 {[%clk
0:00:31.5]} 22... Ndf4+ {[%clk 0:00:57.1]} 0-1

[Event "Late-Titled-Tuesday-Blitz-April-16-2024"]
[Site "Chess.com"]
[Date "2024.04.16"]
[Round "1"]
[White "amanmuhammethommadov"]
[Black "Heydarli77"]
[Result "1-0"]
[WhiteElo "2807"]
[BlackElo "2442"]
[TimeControl "180+1"]
[EndTime "14:06:04 PDT"]
[Termination "amanmuhammethommadov won by resignation"]

1. e4 {[%clk 0:03:00]} 1... c5 {[%clk 0:02:57.8]} 2. Nf3 {[%clk 0:03:00.5]} 2...
e6 {[%clk 0:02:57.5]} 3. c3 {[%clk 0:03:00.6]} 3... d5 {[%clk 0:02:54.9]} 4. e5
{[%clk 0:03:01.1]} 4... Nc6 {[%clk 0:02:54.1]} 5. d4 {[%clk 0:03:02]} 5... cxd4
{[%clk 0:02:51.3]} 6. cxd4 {[%clk 0:03:02.9]} 6... Qb6 {[%clk 0:02:50.9]} 7. Nc3
{[%clk 0:03:03.2]} 7... Nge7 {[%clk 0:02:47.3]} 8. a3 {[%clk 0:03:03.2]} 8...
Nf5 {[%clk 0:02:44.5]} 9. Na4 {[%clk 0:03:03.5]} 9... Qd8 {[%clk 0:02:39.8]} 10.
Bg5 {[%clk 0:03:03.5]} 10... Be7 {[%clk 0:02:38.1]} 11. Bxe7 {[%clk 0:03:03.3]}
11... Qxe7 {[%clk 0:02:37.7]} 12. b4 {[%clk 0:03:03.2]} 12... O-O {[%clk
0:02:35.9]} 13. Rc1 {[%clk 0:03:02.2]} 13... Bd7 {[%clk 0:02:33.2]} 14. Nc5
{[%clk 0:03:02.3]} 14... Rab8 {[%clk 0:02:31.3]} 15. Nb3 {[%clk 0:02:57]} 15...
Rfc8 {[%clk 0:02:28.5]} 16. Bd3 {[%clk 0:02:57.1]} 16... Nh4 {[%clk 0:02:24.7]}
17. O-O {[%clk 0:02:56.8]} 17... Nxf3+ {[%clk 0:02:23.3]} 18. Qxf3 {[%clk
0:02:57.7]} 18... f5 {[%clk 0:02:22.3]} 19. exf6 {[%clk 0:02:55.3]} 19... Qxf6
{[%clk 0:02:21.2]} 20. Qe3 {[%clk 0:02:53.9]} 20... Be8 {[%clk 0:02:14.3]} 21.
Rfe1 {[%clk 0:02:49.9]} 21... Bf7 {[%clk 0:02:13.2]} 22. f4 {[%clk 0:02:47.7]}
22... Re8 {[%clk 0:02:11.1]} 23. Bb5 {[%clk 0:02:36]} 23... Rbc8 {[%clk
0:02:09.7]} 24. Bxc6 {[%clk 0:02:35.4]} 24... bxc6 {[%clk 0:02:09.3]} 25. Nc5
{[%clk 0:02:34.9]} 25... Qf5 {[%clk 0:02:01.9]} 26. Nd3 {[%clk 0:02:31.2]} 26...
Re7 {[%clk 0:01:51]} 27. Ne5 {[%clk 0:02:30.7]} 27... Be8 {[%clk 0:01:50.9]} 28.
Rc5 {[%clk 0:02:30.3]} 28... Rcc7 {[%clk 0:01:43.9]} 29. g3 {[%clk 0:02:29.7]}
29... h5 {[%clk 0:01:39.5]} 30. Rec1 {[%clk 0:02:27.7]} 30... h4 {[%clk
0:01:38.2]} 31. b5 {[%clk 0:02:18.6]} 31... hxg3 {[%clk 0:01:36.6]} 32. hxg3
{[%clk 0:02:17.6]} 32... g5 {[%clk 0:01:35.5]} 33. fxg5 {[%clk 0:02:03.7]} 33...
Rh7 {[%clk 0:01:33.8]} 34. g4 {[%clk 0:01:39.3]} 34... Qf8 {[%clk 0:01:23.5]}
35. Rf1 {[%clk 0:01:37.7]} 35... Qg7 {[%clk 0:01:19.3]} 36. bxc6 {[%clk
0:01:27.4]} 36... Rh4 {[%clk 0:01:18.5]} 37. Qf2 {[%clk 0:01:27]} 37... Rh3
{[%clk 0:01:13.9]} 38. Qf6 {[%clk 0:01:24.3]} 38... Rxa3 {[%clk 0:01:03.7]} 39.
Qxg7+ {[%clk 0:01:23.8]} 39... Kxg7 {[%clk 0:01:02.8]} 40. Rb1 {[%clk
0:01:22.3]} 40... Bxc6 {[%clk 0:00:58]} 41. Rxc6 {[%clk 0:01:19.8]} 41... Rxc6
{[%clk 0:00:56.5]} 42. Nxc6 {[%clk 0:01:20.7]} 42... Rg3+ {[%clk 0:00:56.4]} 43.
Kf2 {[%clk 0:01:19.6]} 43... Rxg4 {[%clk 0:00:56.6]} 44. Rb7+ {[%clk 0:01:18.6]}
44... Kg6 {[%clk 0:00:55.6]} 45. Ne5+ {[%clk 0:01:18.6]} 45... Kxg5 {[%clk
0:00:55]} 46. Nxg4 {[%clk 0:01:19.5]} 46... Kxg4 {[%clk 0:00:55.4]} 47. Rxa7
{[%clk 0:01:19.8]} 47... Kf4 {[%clk 0:00:54.5]} 48. Re7 {[%clk 0:01:19.7]} 48...
Ke4 {[%clk 0:00:54]} 49. Rxe6+ {[%clk 0:01:19.5]} 49... Kxd4 {[%clk 0:00:54]}
50. Ke2 {[%clk 0:01:19.9]} 1-0

[Event "Late-Titled-Tuesday-Blitz-April-16-2024"]
[Site "Chess.com"]
[Date "2024.04.16"]
[Round "1"]
[White "Hikaru"]
[Black "PotapovaM"]
[Result "1-0"]
[WhiteElo "3271"]
[BlackElo "2540"]
[TimeControl "180+1"]
[EndTime "14:06:07 PDT"]
[Termination "Hikaru won by resignation"]

1. d4 {[%clk 0:03:00.2]} 1... Nf6 {[%clk 0:02:58.9]} 2. Bg5 {[%clk 0:02:52.1]}
2... Ne4 {[%clk 0:02:58.8]} 3. Bf4 {[%clk 0:02:52.1]} 3... c5 {[%clk 0:02:59.6]}
4. f3 {[%clk 0:02:52.4]} 4... Qa5+ {[%clk 0:02:59.4]} 5. c3 {[%clk 0:02:52.4]}
5... Nf6 {[%clk 0:02:59.7]} 6. d5 {[%clk 0:02:52.2]} 6... e6 {[%clk 0:03:00.1]}
7. e4 {[%clk 0:02:51.8]} 7... exd5 {[%clk 0:03:00.5]} 8. e5 {[%clk 0:02:51.3]}
8... Nh5 {[%clk 0:02:43.4]} 9. Bc1 {[%clk 0:02:51]} 9... Qd8 {[%clk 0:02:33.2]}
10. g3 {[%clk 0:02:40.3]} 10... d4 {[%clk 0:02:04.4]} 11. f4 {[%clk 0:02:35.1]}
11... g6 {[%clk 0:02:03.8]} 12. cxd4 {[%clk 0:02:35]} 12... cxd4 {[%clk
0:01:55]} 13. Nf3 {[%clk 0:02:35.2]} 13... Nc6 {[%clk 0:01:52.6]} 14. Nxd4
{[%clk 0:02:35.3]} 14... d6 {[%clk 0:01:50.2]} 15. Nxc6 {[%clk 0:02:29.3]} 15...
bxc6 {[%clk 0:01:49.7]} 16. Bg2 {[%clk 0:02:29.9]} 16... d5 {[%clk 0:01:35.5]}
17. Be3 {[%clk 0:02:29.1]} 17... Bb4+ {[%clk 0:01:29.3]} 18. Nc3 {[%clk
0:02:28.1]} 18... Ng7 {[%clk 0:01:24.5]} 19. O-O {[%clk 0:02:28]} 19... Nf5
{[%clk 0:01:24.2]} 20. Bf2 {[%clk 0:02:28.4]} 20... O-O {[%clk 0:01:02.6]} 21.
a3 {[%clk 0:02:26.8]} 21... Ba5 {[%clk 0:01:01.1]} 22. Qa4 {[%clk 0:02:25.1]}
22... Bd7 {[%clk 0:00:58.2]} 23. Qc2 {[%clk 0:02:19.6]} 23... Bb6 {[%clk
0:00:58.1]} 24. Qd2 {[%clk 0:02:19.1]} 24... Rb8 {[%clk 0:00:56.3]} 25. Na4
{[%clk 0:02:18.4]} 25... Bxf2+ {[%clk 0:00:54.2]} 26. Rxf2 {[%clk 0:02:14.9]}
26... Qe7 {[%clk 0:00:35.6]} 27. Rc1 {[%clk 0:02:13]} 27... Rb5 {[%clk
0:00:35.4]} 28. Bf1 {[%clk 0:02:10.6]} 28... Rbb8 {[%clk 0:00:31.6]} 29. Nc5
{[%clk 0:02:10.9]} 29... Bc8 {[%clk 0:00:31.9]} 30. b4 {[%clk 0:02:10.9]} 30...
f6 {[%clk 0:00:29.6]} 31. e6 {[%clk 0:02:08.4]} 31... Ng7 {[%clk 0:00:27.6]} 32.
Re1 {[%clk 0:02:08.4]} 32... Re8 {[%clk 0:00:24.8]} 33. Rfe2 {[%clk 0:02:05.3]}
33... a5 {[%clk 0:00:24.9]} 34. Qc3 {[%clk 0:02:02.5]} 34... axb4 {[%clk
0:00:24.7]} 35. axb4 {[%clk 0:02:03.4]} 35... Ra8 {[%clk 0:00:23.5]} 36. g4
{[%clk 0:01:54.3]} 36... f5 {[%clk 0:00:22.8]} 37. g5 {[%clk 0:01:54.3]} 37...
Nh5 {[%clk 0:00:22.2]} 38. Qd4 {[%clk 0:01:49.6]} 38... Ba6 {[%clk 0:00:22.2]}
39. Re3 {[%clk 0:01:40.3]} 39... Bxf1 {[%clk 0:00:22.5]} 40. Nd7 {[%clk
0:01:41]} 40... Bc4 {[%clk 0:00:05.5]} 41. Nf6+ {[%clk 0:01:41.2]} 41... Kf8
{[%clk 0:00:05]} 42. Nxh5 {[%clk 0:01:39.4]} 42... Kg8 {[%clk 0:00:02.1]} 43.
Nf6+ {[%clk 0:01:39]} 1-0

[Event "Late-Titled-Tuesday-Blitz-April-16-2024"]
[Site "Chess.com"]
[Date "2024.04.16"]
[Round "1"]
[White "masnyszachistaaa"]
[Black "expii"]
[Result "1-0"]
[WhiteElo "2570"]
[BlackElo "2226"]
[TimeControl "180+1"]
[EndTime "14:06:08 PDT"]
[Termination "masnyszachistaaa won by resignation"]

1. c4 {[%clk 0:02:58.1]} 1... e6 {[%clk 0:02:59]} 2. Nf3 {[%clk 0:02:56]} 2...
d5 {[%clk 0:02:57.8]} 3. e3 {[%clk 0:02:55.8]} 3... c5 {[%clk 0:02:52.6]} 4.
cxd5 {[%clk 0:02:52]} 4... exd5 {[%clk 0:02:50.6]} 5. b3 {[%clk 0:02:51.4]} 5...
Nc6 {[%clk 0:02:34.2]} 6. Bb2 {[%clk 0:02:51]} 6... Nf6 {[%clk 0:02:27.6]} 7.
Bb5 {[%clk 0:02:46.1]} 7... Bd7 {[%clk 0:02:18.9]} 8. O-O {[%clk 0:02:43.5]}
8... Be7 {[%clk 0:01:56.5]} 9. Bxc6 {[%clk 0:02:37.6]} 9... Bxc6 {[%clk
0:01:57.4]} 10. Ne5 {[%clk 0:02:37.2]} 10... O-O {[%clk 0:01:50.8]} 11. Nxc6
{[%clk 0:02:36.5]} 11... bxc6 {[%clk 0:01:51.7]} 12. Nc3 {[%clk 0:02:34.7]}
12... Nd7 {[%clk 0:01:41.6]} 13. Na4 {[%clk 0:02:28.5]} 13... Bf6 {[%clk
0:01:23.3]} 14. Bxf6 {[%clk 0:02:20.5]} 14... Qxf6 {[%clk 0:01:24.2]} 15. Rc1
{[%clk 0:02:20.3]} 15... Qe7 {[%clk 0:01:20.1]} 16. Qc2 {[%clk 0:02:12.9]} 16...
c4 {[%clk 0:00:56.7]} 17. bxc4 {[%clk 0:02:12.4]} 17... Nb6 {[%clk 0:00:32.1]}
18. cxd5 {[%clk 0:01:52.5]} 18... cxd5 {[%clk 0:00:13.6]} 19. Qc5 {[%clk
0:01:26.3]} 19... Qxc5 {[%clk 0:00:10.7]} 20. Nxc5 {[%clk 0:01:27.2]} 20... Rac8
{[%clk 0:00:10.7]} 21. Nb3 {[%clk 0:01:22.1]} 21... Nc4 {[%clk 0:00:10.6]} 22.
d3 {[%clk 0:01:22]} 22... Nd6 {[%clk 0:00:09.4]} 23. Nd4 {[%clk 0:01:15.6]}
23... Rxc1 {[%clk 0:00:07.4]} 24. Rxc1 {[%clk 0:01:15.2]} 24... f5 {[%clk
0:00:07.5]} 25. Rc6 {[%clk 0:01:04.4]} 25... Rd8 {[%clk 0:00:05.6]} 26. Rc5
{[%clk 0:00:57.5]} 26... Nf7 {[%clk 0:00:04.3]} 27. Nxf5 {[%clk 0:00:56.4]} 1-0

[Event "Late-Titled-Tuesday-Blitz-April-16-2024"]
[Site "Chess.com"]
[Date "2024.04.16"]
[Round "1"]
[White "N18player"]
[Black "MikeSailer"]
[Result "1-0"]
[WhiteElo "2550"]
[BlackElo "2150"]
[TimeControl "180+1"]
[EndTime "14:06:08 PDT"]
[Termination "N18player won by resignation"]

1. Nf3 {[%clk 0:03:00.9]} 1... d5 {[%clk 0:02:50.7]} 2. e3 {[%clk 0:03:01.8]}
2... Nf6 {[%clk 0:01:52.4]} 3. c4 {[%clk 0:03:02.7]} 3... e6 {[%clk 0:01:50.6]}
4. b3 {[%clk 0:03:03.6]} 4... c5 {[%clk 0:01:50.5]} 5. cxd5 {[%clk 0:03:02.6]}
5... exd5 {[%clk 0:01:50.2]} 6. Bb2 {[%clk 0:03:03.5]} 6... Nc6 {[%clk
0:01:47.4]} 7. Bb5 {[%clk 0:03:00.8]} 7... Bd7 {[%clk 0:01:46.4]} 8. O-O {[%clk
0:02:59.9]} 8... a6 {[%clk 0:01:46.8]} 9. Bxc6 {[%clk 0:03:00.1]} 9... Bxc6
{[%clk 0:01:45.1]} 10. Ne5 {[%clk 0:03:01]} 10... Bb5 {[%clk 0:01:40]} 11. d3
{[%clk 0:03:00.4]} 11... Bd6 {[%clk 0:01:40]} 12. a4 {[%clk 0:02:59.5]} 12...
Bxe5 {[%clk 0:01:40.2]} 13. Bxe5 {[%clk 0:02:58.8]} 13... Bc6 {[%clk 0:01:41.1]}
14. Nc3 {[%clk 0:02:58]} 14... O-O {[%clk 0:01:40.3]} 15. d4 {[%clk 0:02:55.6]}
15... Re8 {[%clk 0:01:37.4]} 16. Rc1 {[%clk 0:02:49.2]} 16... cxd4 {[%clk
0:01:36.5]} 17. Qxd4 {[%clk 0:02:45.3]} 17... Qe7 {[%clk 0:01:28.1]} 18. Bxf6
{[%clk 0:02:44.7]} 18... Qxf6 {[%clk 0:01:27.6]} 19. Qxf6 {[%clk 0:02:43.4]}
19... gxf6 {[%clk 0:01:28.2]} 20. Rfd1 {[%clk 0:02:43.9]} 20... Rad8 {[%clk
0:01:27.2]} 21. Rd4 {[%clk 0:02:43]} 21... Re5 {[%clk 0:01:25.4]} 22. b4 {[%clk
0:02:35.8]} 22... b6 {[%clk 0:01:17.9]} 23. b5 {[%clk 0:02:34.4]} 23... axb5
{[%clk 0:01:17.7]} 24. axb5 {[%clk 0:02:34.3]} 24... Bb7 {[%clk 0:01:18.4]} 25.
Na4 {[%clk 0:02:32.3]} 25... Re6 {[%clk 0:00:54.9]} 26. Rc7 {[%clk 0:02:30.2]}
26... Ba8 {[%clk 0:00:54.3]} 27. h3 {[%clk 0:02:18.8]} 27... Kg7 {[%clk
0:00:50.7]} 28. Kf1 {[%clk 0:02:08.6]} 28... Kg6 {[%clk 0:00:34.5]} 29. Ke2
{[%clk 0:02:04.8]} 29... f5 {[%clk 0:00:33.6]} 30. Kf3 {[%clk 0:02:02.6]} 30...
Kf6 {[%clk 0:00:31.9]} 31. Nc3 {[%clk 0:02:00.4]} 31... Re7 {[%clk 0:00:14.9]}
32. Rxe7 {[%clk 0:01:50.2]} 32... Kxe7 {[%clk 0:00:15.1]} 33. Kf4 {[%clk
0:01:47.6]} 33... Ke6 {[%clk 0:00:14.2]} 34. g3 {[%clk 0:01:44.3]} 34... Rc8
{[%clk 0:00:14.2]} 35. Na4 {[%clk 0:01:42.9]} 35... Rc4 {[%clk 0:00:11.4]} 36.
Nxb6 {[%clk 0:01:41.6]} 36... Rxd4+ {[%clk 0:00:11.5]} 37. exd4 {[%clk 0:01:42]}
37... Bb7 {[%clk 0:00:12.1]} 38. Na4 {[%clk 0:01:42]} 38... Bc8 {[%clk
0:00:09.6]} 39. Nc5+ {[%clk 0:01:42.9]} 39... Kd6 {[%clk 0:00:09.3]} 40. b6
{[%clk 0:01:42.5]} 40... Kc6 {[%clk 0:00:09.5]} 41. b7 {[%clk 0:01:42.9]} 41...
Bxb7 {[%clk 0:00:09.1]} 42. Nxb7 {[%clk 0:01:43.8]} 42... Kxb7 {[%clk 0:00:10]}
43. Kxf5 {[%clk 0:01:44.7]} 43... Kc6 {[%clk 0:00:10.7]} 44. Ke5 {[%clk
0:01:42.7]} 44... Kb5 {[%clk 0:00:11.6]} 45. Kxd5 {[%clk 0:01:42.7]} 1-0

[Event "Late-Titled-Tuesday-Blitz-April-16-2024"]
[Site "Chess.com"]
[Date "2024.04.16"]
[Round "1"]
[White "AlphaGoosee"]
[Black "chess_sharparchitect"]
[Result "1-0"]
[WhiteElo "2582"]
[BlackElo "2235"]
[TimeControl "180+1"]
[EndTime "14:06:09 PDT"]
[Termination "AlphaGoosee won by resignation"]

1. e4 {[%clk 0:03:00.9]} 1... c5 {[%clk 0:02:58.6]} 2. Nf3 {[%clk 0:03:01.1]}
2... d6 {[%clk 0:02:58.4]} 3. d4 {[%clk 0:03:01.5]} 3... cxd4 {[%clk 0:02:58.3]}
4. Nxd4 {[%clk 0:03:02.4]} 4... Nf6 {[%clk 0:02:58.7]} 5. Nc3 {[%clk 0:03:02.9]}
5... a6 {[%clk 0:02:59.3]} 6. f3 {[%clk 0:03:02.8]} 6... e5 {[%clk 0:02:58.8]}
7. Nb3 {[%clk 0:03:03]} 7... Be7 {[%clk 0:02:54.6]} 8. Be3 {[%clk 0:03:02.7]}
8... Be6 {[%clk 0:02:47.8]} 9. Qd2 {[%clk 0:03:02.7]} 9... Nbd7 {[%clk
0:02:35.6]} 10. g4 {[%clk 0:03:02]} 10... h6 {[%clk 0:02:30]} 11. O-O-O {[%clk
0:03:00.3]} 11... b5 {[%clk 0:02:18.1]} 12. a3 {[%clk 0:02:51.3]} 12... Nc5
{[%clk 0:01:56.8]} 13. Nxc5 {[%clk 0:02:28.7]} 13... dxc5 {[%clk 0:01:57.7]} 14.
Nd5 {[%clk 0:02:22.2]} 14... Bxd5 {[%clk 0:01:44.8]} 15. exd5 {[%clk 0:02:22.1]}
15... Bd6 {[%clk 0:01:34]} 16. c4 {[%clk 0:02:16.6]} 16... bxc4 {[%clk
0:01:31.6]} 17. Bxc4 {[%clk 0:02:17.5]} 17... Qb6 {[%clk 0:01:25.6]} 18. h4
{[%clk 0:02:15.1]} 18... Rb8 {[%clk 0:01:24.1]} 19. g5 {[%clk 0:02:12.9]} 19...
Nh5 {[%clk 0:01:12]} 20. gxh6 {[%clk 0:02:08.5]} 20... gxh6 {[%clk 0:01:09.6]}
21. Rhg1 {[%clk 0:02:03.1]} 21... Kd7 {[%clk 0:00:53.8]} 22. b3 {[%clk
0:01:57.3]} 22... a5 {[%clk 0:00:51.6]} 23. a4 {[%clk 0:01:57.3]} 23... Rhe8
{[%clk 0:00:49.1]} 24. Bb5+ {[%clk 0:01:56.8]} 24... Kc7 {[%clk 0:00:47.5]} 25.
Qd3 {[%clk 0:01:52.4]} 25... Re7 {[%clk 0:00:44.1]} 26. Bxh6 {[%clk 0:01:47.2]}
26... Nf6 {[%clk 0:00:40.1]} 27. Bg5 {[%clk 0:01:44.4]} 27... e4 {[%clk
0:00:36.9]} 28. fxe4 {[%clk 0:01:41.4]} 28... Rxe4 {[%clk 0:00:20.8]} 29. Bxf6
{[%clk 0:01:37.7]} 29... Bf4+ {[%clk 0:00:21]} 30. Kb1 {[%clk 0:01:29.8]} 30...
Re3 {[%clk 0:00:20.7]} 31. d6+ {[%clk 0:01:29.7]} 31... Kb7 {[%clk 0:00:16.5]}
32. Qd5+ {[%clk 0:01:26.8]} 32... Ka7 {[%clk 0:00:16.3]} 33. Rg7 {[%clk
0:01:19]} 33... Rxb3+ {[%clk 0:00:12.1]} 34. Qxb3 {[%clk 0:01:17]} 34... c4
{[%clk 0:00:11]} 35. Rxf7+ {[%clk 0:01:16.3]} 1-0